bitfinex/quotes_SOLUSD_20251212
["timestamp","ask_amount","ask_price","bid_price","bid_amount"]
[1765535505017,7.2341808,138.24,138.22,0.65]
[1765535505217,7.9241808,138.24,138.22,0.65]
[1765535506435,7.9241808,138.24,138.21,7.92]
[1765535506741,7.9241808,138.24,138.21,8.57]
[1765535507036,7.9241808,138.24,138.21,7.92]
[1765535507239,7.9241808,138.24,138.22,0.65]
[1765535507417,1.5,138.23,138.22,0.65]
[1765535507618,1.5,138.23,138.21,7.92]
[1765535507923,1.5,138.23,138.21,8.62]
[1765535508430,1.5,138.23,138.22,0.7]
[1765535512139,8.73436612,138.23,138.21,8.62]
[1765535512640,0.66,138.22,138.21,7.92]
[1765535513138,9.39436612,138.23,138.21,7.92]
[1765535513437,1.5,138.22,138.21,8.62]
[1765535515037,8.734843,138.22,138.21,8.62]
[1765535515334,8.734843,138.22,138.21,7.92]
[1765535517727,1.5,138.22,138.21,8.62]
[1765535519235,7.23457611,138.23,138.21,8.62]
[1765535520518,7.23397054,138.24,138.22,0.7]
[1765535520743,7.23397054,138.24,138.23,7.92]
[1765535525725,7.95327305,138.25,138.23,7.92]
[1765535526346,28.85112527,138.25,138.23,7.92]
[1765535526529,3.53466958,138.24,138.21,7.92]
[1765535526736,2.81466958,138.23,138.21,7.92]
[1765535527031,3.53466958,138.23,138.21,7.92]
[1765535527231,3.53466958,138.24,138.21,8.6]
[1765535528045,3.53466958,138.25,138.22,0.68]
[1765535528245,0.72,138.25,138.22,0.68]
[1765535529343,7.95359872,138.25,138.22,0.68]
[1765535530627,0.72,138.24,138.21,7.92]
[1765535530825,3.53466958,138.24,138.21,7.92]
[1765535531242,2.22,138.23,138.21,7.92]
[1765535533051,8.73447555,138.23,138.21,7.92]
[1765535533229,0.72,138.22,138.21,7.92]
[1765535534850,7.95447555,138.23,138.21,7.92]
[1765535535022,7.23447555,138.23,138.21,8.6]
[1765535535228,18.08192707,138.26,138.22,0.68]
[1765535535442,1.5,138.25,138.22,0.68]
[1765535535644,2.22,138.25,138.22,0.68]
[1765535536254,9.45327305,138.25,138.22,0.68]
[1765535539256,9.40327305,138.25,138.22,0.68]
[1765535540054,1.5,138.24,138.22,0.68]
[1765535542536,9.4039679,138.24,138.21,8.59]
[1765535542752,9.4039679,138.24,138.21,7.92]
[1765535542942,9.4039679,138.24,138.21,8.59]
[1765535543852,9.4039679,138.24,138.22,0.67]
[1765535544052,9.4039679,138.24,138.21,15.82531203]
[1765535544947,0.67,138.23,138.21,7.92]
[1765535545149,1.5,138.22,138.21,7.92]
[1765535545660,1.5,138.22,138.21,8.59]
[1765535548449,1.5,138.22,138.21,7.92]
[1765535548644,1.5,138.22,138.21,8.59]
[1765535548962,7.23433828,138.23,138.21,8.59]
[1765535549535,0.67,138.23,138.21,8.59]
[1765535550966,7.90445774,138.23,138.21,7.92]
[1765535551462,7.90445774,138.23,138.21,8.59]
[1765535551756,7.23445774,138.23,138.21,8.59]
[1765535552569,0.67,138.22,138.21,7.92]
[1765535555346,7.904843,138.22,138.21,7.92]
[1765535559673,7.234843,138.22,138.21,7.92]
[1765535560649,7.234843,138.22,138.21,8.59]
[1765535561375,7.234843,138.22,138.21,7.92]
[1765535561563,7.234843,138.22,138.21,8.59]
[1765535562078,7.234843,138.22,138.21,7.92]
[1765535562974,7.23431961,138.23,138.21,7.92]
[1765535563150,0.67,138.22,138.21,7.92]
[1765535563350,7.90431961,138.23,138.21,7.92]
[1765535563674,0.67,138.22,138.21,7.92]
[1765535564951,7.904843,138.22,138.21,7.92]
[1765535569077,7.904843,138.22,138.2,7.92]
[1765535569078,12.30370639,138.22,138.2,7.92]
[1765535569280,0.67,138.21,138.2,7.92]
[1765535570158,11.63370639,138.22,138.2,7.92]
[1765535570359,12.30370639,138.22,138.2,7.92]
[1765535572781,1.5,138.21,138.2,7.92]
[1765535574081,8.73536647,138.21,138.2,7.92]
[1765535578189,8.73536647,138.21,138.19,0.66]
[1765535578376,2.17,138.2,138.18,7.92]
[1765535578686,1.5,138.19,138.18,7.92]
[1765535579264,1.5,138.19,138.18,15.81693732]
[1765535579469,1.5,138.19,138.18,8.58]
[1765535580587,1.5,138.19,138.18,15.81693732]
[1765535580773,1.5,138.21,138.18,20.21580071]
[1765535581090,1.5,138.21,138.2,4.39886339]
[1765535581479,1.5,138.21,138.2,20.94298121]
[1765535581679,1.5,138.21,138.2,25.3418446]
[1765535582270,1.5,138.21,138.2,32.57535152]
[1765535582681,1.5,138.21,138.2,28.17648813]
[1765535582872,1.5,138.21,138.2,32.57535152]
[1765535584570,1.5,138.23,138.2,32.57535152]
[1765535584791,1.5,138.23,138.21,12.97886339]
[1765535585481,1.5,138.23,138.22,0.66]
[1765535590598,7.9038274,138.24,138.22,0.66]
[1765535591787,7.23327305,138.25,138.23,7.92]
[1765535591988,1.5,138.24,138.23,7.92]
[1765535592188,2.17,138.24,138.23,7.92]
[1765535595500,1.5,138.24,138.23,7.92]
[1765535595704,2.17,138.24,138.23,7.92]
[1765535596405,0.67,138.24,138.23,7.92]
[1765535596592,7.90379629,138.24,138.23,7.92]
[1765535603694,18.7522881,138.26,138.23,8.6]
[1765535603896,7.23342519,138.25,138.23,7.92]
[1765535604199,7.23342519,138.25,138.24,0.68]
[1765535604602,7.23342519,138.25,138.23,8.6]
[1765535604910,7.2322268,138.27,138.24,5.07728269]
[1765535605297,7.23170378,138.28,138.25,5.07728269]
[1765535605505,7.23170378,138.28,138.26,8.6]
[1765535605699,7.90170378,138.28,138.26,8.6]
[1765535606212,7.90170378,138.28,138.26,7.92]
[1765535606602,7.23170378,138.28,138.26,7.92]
[1765535606804,5.35160583,138.27,138.22,0.68]
[1765535606994,0.67,138.26,138.22,5.07728269]
[1765535607190,0.67,138.26,138.22,12.31181504]
[1765535607397,0.28432314,138.25,138.21,8.6]
[1765535607597,4.39728269,138.24,138.21,8.6]
[1765535607912,5.06728269,138.24,138.21,8.6]
[1765535609593,0.67,138.23,138.21,7.92]
[1765535609918,2.81578055,138.22,138.19,7.92]
[1765535610093,2.81578055,138.22,138.19,8.6]
[1765535610298,3.48578055,138.22,138.19,8.6]
[1765535610820,4.98578055,138.22,138.19,8.6]
[1765535611690,12.22081462,138.22,138.19,8.6]
[1765535612290,1.5,138.22,138.2,0.68]
[1765535612511,1.5,138.22,138.2,3.49578055]
[1765535613713,1.5,138.22,138.2,0.68]
[1765535613916,1.5,138.22,138.19,7.92]
[1765535614221,2.17,138.22,138.19,8.6]
[1765535615226,9.40506082,138.22,138.19,8.6]
[1765535615601,9.40506082,138.22,138.2,0.68]
[1765535616729,9.40506082,138.22,138.19,8.6]
[1765535617228,9.40506082,138.22,138.19,15.15640264]
[1765535617423,1.5,138.22,138.2,0.68]
[1765535618531,2.17,138.22,138.2,0.68]
[1765535619332,1.5,138.22,138.2,7.91586796]
[1765535619828,2.17,138.22,138.2,0.68]
[1765535620204,1.5,138.21,138.2,0.68]
[1765535620406,7.90488952,138.22,138.2,0.68]
[1765535629810,3.76944294,138.25,138.2,10.73097555]
[1765535630013,10.71865229,138.25,138.2,10.73097555]
[1765535630331,1.5,138.24,138.21,0.67]
[1765535630532,1.5,138.24,138.22,7.92]
[1765535630920,1.5,138.24,138.22,8.59]
[1765535633032,1.5,138.24,138.22,7.92]
[1765535633232,1.5,138.24,138.23,0.67]
[1765535633435,7.90377808,138.25,138.23,0.67]
[1765535633945,7.23377808,138.25,138.23,0.67]
[1765535634723,124.09529606,138.28,138.23,0.67]
[1765535635033,18.08017626,138.28,138.23,10.71932488]
[1765535635241,18.75017626,138.28,138.24,3.4851198]
[1765535635416,0.67,138.29,138.25,7.92]
[1765535635624,0.67,138.28,138.25,8.59]
[1765535636144,7.90183816,138.28,138.25,8.59]
[1765535636351,7.90183816,138.28,138.25,7.92]
[1765535636524,7.90183816,138.28,138.26,0.67]
[1765535636720,7.90183816,138.28,138.25,7.92]
[1765535636923,0.67,138.27,138.25,8.59]
[1765535637447,0.67,138.27,138.25,7.92]
[1765535638320,7.90274114,138.27,138.25,7.92]
[1765535639352,25.31096325,138.28,138.25,7.92]
[1765535639526,0.67,138.26,138.25,7.92]
[1765535640840,7.90274989,138.26,138.25,7.92]
[1765535641346,0.28432314,138.25,138.2,0.67]
[1765535641661,2.8151198,138.24,138.21,7.92]
[1765535641828,2.8151198,138.24,138.21,8.59]
[1765535642027,0.67,138.23,138.21,8.59]
[1765535644939,7.90433295,138.23,138.21,8.59]
[1765535646955,1.5,138.22,138.21,8.59]
[1765535647131,7.90433295,138.23,138.21,8.59]
[1765535650650,0.67,138.22,138.21,7.92]
[1765535653454,10.7199628,138.22,138.21,7.92]
[1765535654032,7.904843,138.22,138.21,7.92]
[1765535658747,10.72013999,138.22,138.21,7.92]
[1765535659859,0.28432314,138.21,138.16,7.89755322]
[1765535660056,3.78962013,138.21,138.17,7.92]
[1765535660266,3.78962013,138.21,138.17,8.58]
[1765535660562,0.69,138.2,138.17,8.58]
[1765535661151,7.9261258,138.2,138.17,8.58]
[1765535661359,10.74142279,138.2,138.17,8.58]
[1765535661755,7.23541021,138.21,138.18,3.51529699]
[1765535661971,7.91541021,138.21,138.18,3.51529699]
[1765535662153,7.91541021,138.21,138.18,0.7]
[1765535664770,1.5,138.19,138.18,0.7]
[1765535666668,1.5,138.19,138.17,7.92]
[1765535666848,2.18,138.19,138.17,8.62]
[1765535668267,9.41664848,138.19,138.17,8.62]
[1765535668573,1.5,138.19,138.17,8.62]
[1765535670062,1.5,138.19,138.18,0.7]
[1765535670651,7.23641363,138.19,138.18,0.7]
[1765535672861,7.91614085,138.2,138.18,0.7]
[1765535679251,13.81650312,138.19,138.15,0.9]
[1765535679567,31.9075372,138.19,138.15,8.82]
[1765535679766,0.68,138.18,138.15,8.82]
[1765535679964,1.5,138.17,138.15,8.82]
[1765535682369,1.5,138.17,138.15,13.21990634]
[1765535682968,1.5,138.17,138.16,0.7]
[1765535683174,1.5,138.17,138.16,5.09990634]
[1765535683985,1.5,138.17,138.16,12.33789128]
[1765535685883,7.91649013,138.19,138.16,0.7]
[1765535688089,0.68,138.18,138.16,0.7]
[1765535688258,7.91649013,138.19,138.16,0.7]
[1765535689577,7.91649013,138.19,138.16,7.93797766]
[1765535689767,7.91649013,138.19,138.17,0.66]
[1765535691591,1.5,138.18,138.17,0.66]
[1765535694491,8.73693732,138.18,138.17,0.66]
[1765535694687,8.73693732,138.18,138.16,0.66]
[1765535695890,1.5,138.18,138.16,0.66]
[1765535696188,1.5,138.18,138.16,12.29901136]
[1765535696382,1.5,138.2,138.17,4.40105459]
[1765535696583,1.5,138.2,138.18,12.32105459]
[1765535696780,1.5,138.19,138.18,12.98105459]
[1765535696982,1.5,138.19,138.18,12.32105459]
[1765535697489,1.5,138.19,138.18,12.98105459]
[1765535697792,1.5,138.19,138.18,20.21799191]
[1765535701676,1.5,138.24,138.18,38.31033523]
[1765535701871,2.18,138.24,138.21,4.40105459]
[1765535702194,9.41384132,138.24,138.22,7.92]
[1765535702406,0.68,138.23,138.22,7.92]
[1765535704179,8.73384132,138.24,138.22,7.92]
[1765535704519,0.68,138.23,138.22,7.92]
[1765535721006,7.23384132,138.24,138.22,7.92]
[1765535721201,7.94384132,138.24,138.22,7.92]
[1765535722209,7.94384132,138.24,138.22,8.59]
[1765535723515,7.94384132,138.24,138.22,7.92]
[1765535723695,0.71,138.23,138.22,7.92]
[1765535724405,7.94384132,138.24,138.22,7.92]
[1765535724606,0.71,138.23,138.22,7.92]
[1765535724920,7.94384132,138.24,138.22,7.92]
[1765535725116,7.94384132,138.24,138.22,8.59]
[1765535725617,7.94384132,138.24,138.22,7.92]
[1765535726015,0.71,138.23,138.22,7.92]
[1765535727421,7.94384132,138.24,138.22,7.92]
[1765535727925,7.23384132,138.24,138.22,7.92]
[1765535728099,0.71,138.23,138.22,7.92]
[1765535729822,7.94431961,138.23,138.22,7.92]
[1765535730526,0.71,138.23,138.22,7.92]
[1765535732925,7.94406292,138.24,138.22,7.92]
[1765535733123,7.23406292,138.24,138.22,7.92]
[1765535733428,0.71,138.23,138.22,7.92]
[1765535739521,7.23406292,138.24,138.22,7.92]
[1765535739840,7.94406292,138.24,138.22,7.92]
[1765535740021,0.71,138.23,138.22,7.92]
[1765535740328,7.94406292,138.24,138.22,7.92]
[1765535740537,0.71,138.23,138.22,7.92]
[1765535743037,7.23406292,138.24,138.22,7.92]
[1765535743634,0.71,138.23,138.22,7.92]
[1765535745727,7.94334991,138.25,138.22,8.59]
[1765535746044,7.94334991,138.25,138.23,0.67]
[1765535746045,7.23334991,138.25,138.23,0.67]
[1765535746720,0.71,138.27,138.24,7.92]
[1765535746931,0.71,138.27,138.25,0.67]
[1765535747337,0.71,138.27,138.24,8.59]
[1765535747511,10.75711407,138.27,138.24,7.92]
[1765535748028,0.69,138.26,138.24,7.92]
[1765535748331,3.50456197,138.26,138.24,7.92]
[1765535748758,0.28432314,138.24,138.2,7.92]
[1765535748917,2.81456197,138.22,138.2,7.92]
[1765535749319,3.50456197,138.22,138.2,7.92]
[1765535749517,3.50456197,138.22,138.2,8.6]
[1765535750129,10.73961679,138.22,138.2,8.6]
[1765535750648,7.92505482,138.22,138.2,8.6]
[1765535752444,7.23505482,138.22,138.2,7.92]
[1765535752639,0.69,138.21,138.2,7.92]
[1765535755819,7.92505482,138.22,138.2,8.6]
[1765535756852,7.92505482,138.22,138.2,7.92]
[1765535757083,0.69,138.21,138.2,7.92]
[1765535757348,7.23505482,138.22,138.2,7.92]
[1765535757521,7.92505482,138.22,138.2,7.92]
[1765535758232,7.92505482,138.22,138.2,8.6]
[1765535760635,7.92505482,138.22,138.2,7.92]
[1765535761154,3.5053741,138.21,138.2,7.92]
[1765535761618,3.5053741,138.21,138.18,7.92]
[1765535761825,25.32216232,138.22,138.18,8.6]
[1765535762023,0.69,138.21,138.19,0.68]
[1765535762944,1.5,138.2,138.19,0.68]
[1765535763754,1.5,138.2,138.19,7.91641363]
[1765535763951,1.5,138.2,138.19,0.68]
[1765535767434,2.19,138.2,138.18,7.92]
[1765535767635,2.19,138.2,138.18,8.6]
[1765535767949,9.42602225,138.2,138.18,8.6]
[1765535768758,1.5,138.19,138.18,8.6]
[1765535771050,1.5,138.19,138.18,7.92]
[1765535771257,1.5,138.19,138.18,8.6]
[1765535774768,7.92602225,138.2,138.18,8.6]
[1765535776567,7.23536647,138.21,138.18,7.92]
[1765535776745,0.68,138.2,138.18,8.63]
[1765535778872,7.91591448,138.2,138.18,8.63]
[1765535779969,7.23555469,138.21,138.18,15.86688697]
[1765535780157,7.91555469,138.21,138.19,0.72]
[1765535780765,1.5,138.2,138.19,0.72]
[1765535781667,1.5,138.2,138.18,7.92]
[1765535781863,2.18,138.2,138.18,8.64]
[1765535783674,2.18,138.2,138.18,15.87688309]
[1765535783871,1.5,138.2,138.18,15.87688309]
[1765535784042,1.5,138.2,138.19,0.72]
[1765535785552,1.5,138.2,138.19,7.95641363]
[1765535787750,2.18,138.2,138.18,15.15666811]
[1765535788482,2.18,138.2,138.18,15.87666811]
[1765535788848,1.5,138.2,138.18,15.87666811]
[1765535789055,1.5,138.2,138.19,0.72]
[1765535792677,12.31452981,138.22,138.19,0.72]
[1765535792881,0.68,138.21,138.2,7.92]
[1765535794259,7.91536647,138.21,138.2,7.92]
[1765535797779,12.31489144,138.21,138.2,7.92]
[1765535799468,12.31489144,138.21,138.18,7.92]
[1765535799786,5.07952497,138.2,138.18,7.92]
[1765535799977,0.68,138.19,138.18,7.92]
[1765535801277,7.23602534,138.2,138.18,7.92]
[1765535801483,7.91602534,138.2,138.18,7.92]
[1765535801983,0.68,138.19,138.18,7.92]
[1765535802185,7.91602534,138.2,138.18,7.92]
[1765535802387,7.23558726,138.21,138.19,0.72]
[1765535802770,7.91558726,138.21,138.19,0.72]
[1765535802972,7.91558726,138.21,138.18,7.92]
[1765535803173,7.91558726,138.21,138.18,8.64]
[1765535803374,0.68,138.2,138.18,8.64]
[1765535804390,1.5,138.19,138.18,8.64]
[1765535810307,1.5,138.19,138.18,20.27646229]
[1765535810591,4.39952497,138.23,138.18,51.41589681]
[1765535810592,1.5,138.23,138.18,51.41589681]
[1765535810802,0.72,138.27,138.22,4.39952497]
[1765535810977,0.72,138.27,138.23,12.31952497]
[1765535811497,0.72,138.27,138.24,0.67]
[1765535811695,7.95234244,138.27,138.24,0.67]
[1765535816299,1.5,138.26,138.24,0.67]
[1765535816602,1.5,138.26,138.24,12.30323295]
[1765535816978,1.5,138.26,138.25,5.06952497]
[1765535817496,1.5,138.26,138.25,0.67]
[1765535820408,1.5,138.26,138.25,7.90327305]
[1765535821280,2.22,138.26,138.24,7.23354488]
[1765535821482,1.5,138.26,138.24,7.90354488]
[1765535821785,1.5,138.26,138.24,7.23354488]
[1765535822112,0.72,138.25,138.23,15.8240665]
[1765535822402,1.5,138.24,138.23,15.8240665]
[1765535822602,12.34916714,138.25,138.23,7.92]
[1765535822803,5.11585816,138.24,138.2,7.90572989]
[1765535822992,1.5,138.23,138.2,15.82572989]
[1765535823189,2.22,138.23,138.2,15.82572989]
[1765535823712,2.22,138.23,138.21,7.90524949]
[1765535823909,2.22,138.23,138.21,7.23524949]
[1765535824289,2.22,138.23,138.2,15.82569284]
[1765535827124,0.72,138.22,138.2,7.92]
[1765535828298,1.5,138.21,138.2,15.15587706]
[1765535828509,1.5,138.21,138.2,7.92]
[1765535828702,0.72,138.21,138.2,7.92]
[1765535829325,11.63078405,138.22,138.2,7.92]
[1765535829511,12.35078405,138.22,138.2,7.92]
[1765535829921,5.11585816,138.22,138.2,7.92]
[1765535830124,0.72,138.22,138.2,7.92]
[1765535830701,7.95493189,138.22,138.2,7.92]
[1765535832229,0.72,138.21,138.2,7.92]
[1765535833916,11.63079005,138.22,138.2,7.92]
[1765535834110,12.35079005,138.22,138.2,7.92]
[1765535834512,11.63079005,138.22,138.2,7.92]
[1765535834802,0.72,138.21,138.2,7.92]
[1765535835804,12.29079005,138.22,138.2,7.92]
[1765535836533,0.66,138.21,138.2,7.92]
[1765535837812,7.89536647,138.21,138.2,7.92]
[1765535845738,7.234843,138.22,138.2,7.92]
[1765535846038,7.894843,138.22,138.2,7.92]
[1765535846237,0.66,138.21,138.2,7.92]
[1765535847619,5.3401813,138.21,138.15,0.91]
[1765535847923,7.23746109,138.17,138.15,8.12]
[1765535848429,0.66,138.16,138.15,8.12]
[1765535848832,7.89746109,138.17,138.15,8.12]
[1765535852542,7.23746109,138.17,138.15,8.12]
[1765535852844,7.89746109,138.17,138.15,8.12]
[1765535854253,7.89746109,138.17,138.15,8.83]
[1765535855634,7.89746109,138.17,138.15,8.12]
[1765535855946,0.66,138.16,138.15,8.12]
[1765535856257,7.89798494,138.16,138.15,8.12]
[1765535856929,7.23798494,138.16,138.15,8.12]
[1765535859568,7.89771724,138.17,138.15,8.12]
[1765535860072,3.4776589,138.16,138.15,0.2]
[1765535860263,3.76198204,138.16,138.15,0.2]
[1765535860632,13.33141434,138.15,138.14,0.2]
[1765535860934,13.0470912,138.14,138.13,1e-08]
[1765535861137,13.0470912,138.13,138.12,0.2]
[1765535861334,7.24060531,138.11,138.1,0.2]
[1765535861586,7.52492845,138.11,138.1,0.2]
[1765535861864,11.00258735,138.11,138.1,0.2]
[1765535862328,10.34258735,138.11,138.1,0.2]
[1765535862531,11.00258735,138.11,138.1,0.2]
[1765535863141,8.18492845,138.11,138.1,0.2]
[1765535863337,11.00258735,138.11,138.1,0.2]
[1765535865264,8.18492845,138.11,138.1,0.2]
[1765535865436,11.00258735,138.11,138.1,0.2]
[1765535867192,8.18492845,138.11,138.1,0.2]
[1765535867352,11.00258735,138.11,138.1,0.2]
[1765535868143,8.18492845,138.11,138.1,0.2]
[1765535868349,11.00258735,138.11,138.1,0.2]
[1765535869277,8.18492845,138.11,138.1,0.2]
[1765535869474,11.00258735,138.11,138.1,0.2]
[1765535870060,8.18492845,138.11,138.1,0.2]
[1765535870277,11.00258735,138.11,138.1,0.2]
[1765535871453,7.24060531,138.11,138.1,0.2]
[1765535871753,7.24060531,138.11,138.1,0.91]
[1765535873466,7.24060531,138.11,138.1,0.2]
[1765535873874,7.24060531,138.11,138.1,0.91]
[1765535875366,7.24060531,138.11,138.1,0.2]
[1765535881597,10.05826421,138.11,138.1,0.2]
[1765535882084,10.77826421,138.11,138.1,0.2]
[1765535885686,7.96060531,138.11,138.1,0.2]
[1765535885889,10.77826421,138.11,138.1,0.2]
[1765535887868,10.06101301,138.11,138.1,0.2]
[1765535888069,10.78101301,138.11,138.1,0.2]
[1765535888601,7.96060531,138.11,138.1,0.2]
[1765535889175,11.06533615,138.11,138.1,0.2]
[1765535891406,7.24060531,138.11,138.1,0.91]
[1765535892004,7.24008108,138.12,138.1,0.91]
[1765535892377,10.06048878,138.12,138.1,0.91]
[1765535892577,10.78048878,138.12,138.1,0.91]
[1765535892907,10.78048878,138.12,138.1,0.2]
[1765535892908,3.82473084,138.11,138.1,0.2]
[1765535893201,11.76473084,138.11,138.1,0.2]
[1765535893977,21.82574385,138.11,138.1,0.2]
[1765535897402,34.87283505,138.11,138.1,0.2]
[1765535898693,32.05242735,138.11,138.1,0.2]
[1765535899308,9.09426806,138.1,138.09,0.2]
[1765535899508,0.99999999,138.07,138.06,0.87]
[1765535899800,3.10473084,138.07,138.06,0.87]
[1765535900001,0.28432314,138.07,138.06,0.2]
[1765535900207,3.10473084,138.07,138.06,0.2]
[1765535901210,10.34743381,138.07,138.06,0.2]
[1765535904480,11.02743381,138.07,138.06,0.2]
[1765535905004,10.34743381,138.07,138.06,0.2]
[1765535909509,10.34743381,138.07,138.06,0.87]
[1765535909885,10.34743381,138.07,138.06,0.2]
[1765535910087,10.34743381,138.07,138.06,0.87]
[1765535910290,7.52702611,138.07,138.06,0.87]
[1765535911810,7.24270297,138.07,138.06,0.87]
[1765535912008,111.82,138.1,138.06,0.87]
[1765535912009,121.30347409,138.1,138.06,0.87]
[1765535912199,124.12388179,138.1,138.07,0.67]
[1765535912513,7.24165399,138.09,138.07,0.67]
[1765535913689,2.8204077,138.1,138.07,0.67]
[1765535914692,25.34253524,138.11,138.07,0.67]
[1765535914894,2.8204077,138.1,138.07,0.67]
[1765535915607,7.24165399,138.09,138.07,0.67]
[1765535917225,8.24165399,138.09,138.07,0.67]
[1765535920325,30.75349802,138.09,138.06,0.2]
[1765535920622,31.43349802,138.09,138.06,0.87]
[1765535921524,31.43349802,138.09,138.07,0.67]
[1765535922029,31.43418288,138.09,138.07,0.67]
[1765535922927,31.43418288,138.09,138.06,0.2]
[1765535922928,31.43418288,138.09,138.06,0.87]
[1765535923305,5.40839391,138.08,138.06,0.87]
[1765535923820,5.40839391,138.08,138.07,0.67]
[1765535924018,1.0,138.08,138.07,0.67]
[1765535924424,8.24217844,138.08,138.07,0.67]
[1765535927635,8.24217844,138.08,138.06,0.91]
[1765535927834,8.24217844,138.08,138.06,0.2]
[1765535928025,8.24217844,138.08,138.07,0.71]
[1765535928227,26.34762455,138.08,138.06,0.91]
[1765535929139,1.0,138.07,138.06,0.91]
[1765535929330,25.34762455,138.08,138.06,0.91]
[1765535930329,26.04762455,138.08,138.06,0.2]
[1765535930728,30.45601846,138.08,138.06,0.2]
[1765535932434,26.04762455,138.08,138.06,0.2]
[1765535932636,30.45601846,138.08,138.06,0.91]
[1765535935012,8.24270297,138.07,138.06,0.91]
[1765535938114,7.52702611,138.07,138.06,0.2]
[1765535939543,7.24270297,138.07,138.06,0.91]
[1765535939716,7.24239734,138.08,138.06,0.91]
[1765535939922,7.24239734,138.08,138.07,0.71]
[1765535943134,18.10079932,138.12,138.07,7.9526581]
[1765535943449,22.50919323,138.12,138.08,0.71]
[1765535943619,18.10079932,138.12,138.08,0.71]
[1765535943819,25.3408804,138.12,138.08,0.71]
[1765535944135,1.0,138.1,138.08,0.71]
[1765535945820,7.24165399,138.09,138.08,0.71]
[1765535946361,7.24165399,138.09,138.06,8.85]
[1765535946653,7.24165399,138.09,138.07,0.71]
[1765535948229,1.0,138.1,138.07,12.36076485]
[1765535948439,1.0,138.1,138.08,0.71]
[1765535949952,1.0,138.09,138.08,0.71]
[1765535951125,1.0,138.09,138.08,7.95217844]
[1765535952448,1.0,138.09,138.08,12.36057235]
[1765535953426,1.0,138.09,138.08,7.95217844]
[1765535953637,1.0,138.09,138.08,12.36057235]
[1765535954034,1.0,138.11,138.08,30.46601846]
[1765535954229,1.0,138.11,138.09,13.05839391]
[1765535954748,1.0,138.11,138.1,0.71]
[1765535955830,1.0,138.11,138.1,0.66]
[1765535957556,8.24060531,138.11,138.1,0.66]
[1765535958338,8.24060531,138.11,138.09,8.66]
[1765535958538,8.24060531,138.11,138.09,7.94]
[1765535958746,8.24060531,138.11,138.1,0.72]
[1765535958947,7.24008108,138.12,138.1,0.72]
[1765535960561,0.68,138.11,138.09,7.94]
[1765535960763,5.36906756,138.11,138.09,7.94]
[1765535960940,12.61000012,138.11,138.09,7.94]
[1765535962466,5.08474442,138.11,138.09,8.66]
[1765535962666,0.68,138.11,138.09,8.66]
[1765535963055,12.32494043,138.12,138.09,8.66]
[1765535963265,0.68,138.11,138.09,8.66]
[1765535964776,1.0,138.1,138.09,8.66]
[1765535965550,1.0,138.1,138.09,7.94]
[1765535967871,1.0,138.1,138.08,7.96176711]
[1765535968858,1.0,138.1,138.09,0.72]
[1765535970673,8.20404793,138.13,138.09,7.96141708]